Cogmind - Beta 13 @@@ ROGUE MODE // 2024.04.01 @ 21:25:43 Player: SovietPaperclip Result: Destroyed by H-77 Assassin with Coil Gun Performance ------------- Evolutions (7) 3500 Regions Visited (11) 2200 Robots Destroyed (153) 765 Value Destroyed (4346) 4346 Prototype IDs (14) 280 Alien Tech Used (0) 0 Bonus (1155) 1155 TOTAL SCORE: 12246 Bonus ------- High Alert Combat Kills 273 Follower Combat Kills 82 Entered DSFs 500 Aligned with FarCom 300 Cogmind --------- Core Integrity 0/1300 Matter 69/300 Energy 96/100 System Corruption 8% Temperature Cool (0) Movement Core (100) Ox1 Location -3/Research Parts ------- > --- POWER (2) -------- (None) > --- PROPULSION (6) --- (None) > --- UTILITY (11) ----- Advanced Signal Interpreter Advanced Hacking Suite > --- WEAPON (2) ------- Force Lance > --- INVENTORY (5) ---- Light Antimatter Reactor Xenon Bombardment Thruster Improved Cloaking Device Peak State ------------ > --- POWER ------------ Light Antimatter Reactor > --- PROPULSION ------- Cooled Nuclear Pulse Thruster Nuclear Pulse Array Impulse Thruster > --- UTILITY ---------- Medium Storage Unit Experimental Energy Well Advanced Weight Redist. System Advanced Signal Interpreter ECM Suite Advanced Reaction Control System Improved Cloaking Device Layered Light Armor Plating Hacking Suite Improved System Shield > --- WEAPON ----------- Powered Hammer > --- INVENTORY -------- Light Fission Core Improved Fusion Compressor Energy Well Enhanced Optical Array Improved Cloaking Device Advanced Shield Generator Advanced Hacking Suite Micro-nuke Launcher [Rating: 86] Favorites ----------- Power Light Ion Engine Engine Light Ion Engine Power Core Light Nuclear Core Reactor Light Antimatter Reactor Propulsion Light Treads Treads Light Treads Wheel Wheel Flight Unit Nuclear Pulse Array Utility High-capacity Storage Unit Device Advanced Weight Redist. System Storage High-capacity Storage Unit Processor Advanced Signal Interpreter Hackware Hacking Suite Protection Layered Light Armor Plating Weapon Enhanced Autogun Energy Cannon Compact Ion Cannon Ballistic Gun Enhanced Autogun Launcher Grenade Launcher Impact Weapon Great Maul Slashing Weapon Greatsword Piercing Weapon Spear Build | -11 -10 -10 -10 -9 -8 -7 -7 -6 -5 -4 -3 ------- Run | Yrd Mat Min Exi Min Mat Fac DSF Fac Fac Fac Res Slots Evolved 14 | . . . . . 4 2 . 2 2 2 2 Power 1 | . . . . . . . . . . 1 . Propulsion 4 | . . . . . 2 1 . 1 . . . Utility 9 | . . . . . 2 1 . 1 2 1 2 Weapon . | . . . . . . . . . . . . Parts Attached 168 | 7 12 5 1 . 37 21 2 27 5 35 16 Power 23 | 1 2 1 . . 3 1 1 2 1 8 3 Engine 6 | 1 2 1 . . . 1 1 . . . . Core 13 | . . . . . 3 . . 2 1 4 3 Reactor 4 | . . . . . . . . . . 4 . Propulsion 32 | 2 2 . . . 13 6 . 3 2 2 2 Treads 16 | 2 2 . . . 12 . . . . . . Leg . | . . . . . . . . . . . . Wheel 1 | . . . . . 1 . . . . . . Hover . | . . . . . . . . . . . . Flight 15 | . . . . . . 6 . 3 2 2 2 Utility 66 | 1 4 1 . . 13 10 1 10 2 20 4 Device 24 | . . . . . 3 3 1 5 1 11 . Storage 11 | 1 2 . . . . 3 . 1 1 1 2 Processor 3 | . . . . . . . . 1 . 2 . Hackware 7 | . . . . . 2 2 . . . 2 1 Protection 21 | . 2 1 . . 8 2 . 3 . 4 1 Artifact . | . . . . . . . . . . . . Weapon 47 | 3 4 3 1 . 8 4 . 12 . 5 7 Energy Gun . | . . . . . . . . . . . . Energy Cannon 2 | . . . 1 . . . . 1 . . . Ballistic Gun 13 | 3 3 2 . . 5 . . . . . . Ballistic Cannon . | . . . . . . . . . . . . Launcher 21 | . 1 1 . . 2 1 . 7 . 4 5 Special Weapon . | . . . . . . . . . . . . Impact Weapon 6 | . . . . . 1 1 . 3 . 1 . Slashing Weapon 2 | . . . . . . 1 . 1 . . . Piercing Weapon 3 | . . . . . . 1 . . . . 2 Special Melee Weapon . | . . . . . . . . . . . . Unidentified Prototypes 10 | . 1 . 1 . 1 1 1 1 1 2 1 Corrupted Parts 1 | . . . . . . . . . . . 1 System Corruption 1 | . . . . . . . . . . . 1 Parts Lost 50 | . 4 . . . 14 . 6 1 . 7 18 Power 6 | . 2 . . . 1 . 1 . . . 2 Propulsion 19 | . 1 . . . 7 . 4 . . 2 5 Utility 21 | . 1 . . . 5 . 1 1 . 4 9 Weapon 4 | . . . . . 1 . . . . 1 2 Highest Loss Streak 15 | . 1 . . . 6 . 6 1 . 3 15 To Critical Strikes . | . . . . . . . . . . . . Average Slot Usage (%) 81 | . 92 96 93 85 87 90 55 48 76 70 55 Engine 6 | . 12 14 14 14 1 6 5 . . . . Core 3 | . . . . . 7 . . 5 5 5 1 Treads 18 | . 27 28 28 28 29 1 . . . . . Flight 5 | . . . . . . 35 18 9 18 17 10 Device 5 | . . . . . . 6 4 12 22 18 15 Storage 9 | . 14 14 14 14 9 5 5 . 4 5 5 Processor 1 | . . . . . . . . 2 5 5 4 Hackware 3 | . . . . . 1 13 13 6 5 5 8 Protection 11 | . 8 11 14 14 19 10 2 4 5 5 2 Ballistic Gun 13 | . 27 19 21 14 16 1 . . . . . Launcher 1 | . . 8 . . 1 . . 1 . . . Impact Weapon 1 | . . . . . . . . 4 5 5 1 Naked Turns . | . . . . . . . . . . . . Heaviest Build 61 | 12 51 50 48 47 61 61 22 26 33 49 35 Greatest Support 80 | 40 40 40 40 40 80 60 25 28 47 47 35 Greatest Overweight (x) 17 | . 1 1 1 1 17 2 3 . . 1 1 Average Overweight (x) . | . . 1 1 1 . . . . . . . Largest Inventory Capacity 25 | 8 20 20 20 20 20 25 8 10 10 10 10 Average Capacity 15 | 7 17 20 20 20 20 8 7 5 9 10 9 Most Carried 20 | 5 14 13 14 14 20 20 8 5 7 10 10 Average Carried 11 | 1 9 12 13 14 17 7 6 4 4 8 7 Final Capacity 20 | 8 20 20 20 20 20 8 5 5 10 10 5 Final Carried 20 | 1 11 13 14 14 20 8 5 5 7 8 3 Class Distribution -------------------- 59% | Mutant 17% | Scavenger-Mutant 9% | Hacker-Sprinter 5% | Infiltrator-Sprinter 3% | Sprinter Dominant Class ---------------- Mutant | -10/Materials Mutant | -10/Mines Mutant | -10/Exiles Mutant | -9/Mines Scavenger-Mutant | -8/Materials Hacker-Sprinter | -7/Factory Hacker-Sprinter | -7/DSF Mutant | -6/Factory Infiltrator-Sprinter | -5/Factory Infiltrator-Sprinter | -4/Factory Hacker-Sprinter | -3/Research Resources | -11 -10 -10 -10 -9 -8 -7 -7 -6 -5 -4 -3 ----------- Run | Yrd Mat Min Exi Min Mat Fac DSF Fac Fac Fac Res Matter Collected 4273 | 263 514 221 . 10 1771 142 27 577 30 377 341 Remotely . | . . . . . . . . . . . . Salvage Created 5587 | . 897 89 . . 2353 186 . 768 238 409 647 Parts 290 | . 59 3 . . 150 22 . 22 1 11 22 Haulers Intercepted 15 | . 2 . . . 6 2 . 2 1 2 . Recyclers Shooed 5 | . 1 . . . 1 . . . . 1 2 Parts Field Recycled . | . . . . . . . . . . . . Retrieved Matter . | . . . . . . . . . . . . Parts Self-Destructed . | . . . . . . . . . . . . Prevented . | . . . . . . . . . . . . Kills | -11 -10 -10 -10 -9 -8 -7 -7 -6 -5 -4 -3 ------- Run | Yrd Mat Min Exi Min Mat Fac DSF Fac Fac Fac Res Combat Hostiles Destroyed 90 | . 17 6 . . 41 . . 10 . 5 11 Melee 2 | . . . . . . . . . . 1 1 Guns 52 | . 17 3 . . 32 . . . . . . AOE 36 | . . 3 . . 9 . . 10 . 4 10 Classes Destroyed 17 | . 8 2 . . 4 . . 2 . 1 . Worker 10 | . 1 . . . 6 . . 1 . 1 1 Builder 16 | . 1 . . . 5 4 . 3 . 1 2 Tunneler 2 | . . . . . 1 . . 1 . . . Hauler 15 | . 2 . . . 6 2 . 2 1 2 . Recycler 8 | . 1 . . . 1 . . 1 1 1 3 Mechanic 1 | . . . . . . . . 1 . . . Operator 9 | . 2 . . . 2 1 . 2 1 1 . Watcher 7 | . 3 . . . 2 . . 2 . . . Swarmer 20 | . 6 . . . 6 . . . . 3 5 Grunt 42 | . 11 2 . . 24 . . 5 . . . Brawler 2 | . . . . . 2 . . . . . . Duelist 2 | . . . . . 1 . . 1 . . . Sentry 11 | . . . . . 8 . . 2 . . 1 Demolisher 1 | . . 1 . . . . . . . . . Hunter 4 | . . . . . . . . 2 . . 2 Programmer 5 | . . . . . . . . . . 2 3 Assembled 3 | . . 3 . . . . . . . . . Best Kill Streak 9 | . 5 2 . . 9 6 . 8 2 4 8 Combat Bots Only 7 | . 5 2 . . 6 . . 5 . 4 7 Max Kills in Single Turn 3 | . 2 2 . . 3 1 . 2 1 3 3 Gunslinging 1 | . 1 . . . . . . . . . . Exploded 3 | . . 2 . . 3 . . 1 . 3 3 Melee 1 | . . . . . . . . . . 1 1 Uniques/NPCs Destroyed . | . . . . . . . . . . . . Combat | -11 -10 -10 -10 -9 -8 -7 -7 -6 -5 -4 -3 -------- Run | Yrd Mat Min Exi Min Mat Fac DSF Fac Fac Fac Res Hostile Shots Fired 752 | . 92 29 . . 199 . 32 164 . 49 187 Missed 282 | . 22 6 . . 54 . 13 87 . 19 81 Damage Taken 8771 | . 704 497 . . 2432 . 675 913 . 1234 2316 Core 2452 | . 61 82 . . 355 . 277 200 . 174 1303 Absorbed by Shields 229 | . . . . . . . 103 . . 126 . Redirected to Shielding 58 | . 2 16 . . 40 . . . . . . Regen/Repaired (Parts) 382 | . 126 . . . . . . 256 . . . Core Remaining (%) 71 | 100 . . . 42 35 . 60 76 100 84 . Volleys Fired 324 | . 77 13 . . 187 1 . 21 . 5 20 Largest 2 | . 2 2 . . 2 2 . 1 . 1 1 Hottest 60 | . 43 60 . . 55 50 . 36 . 43 52 Shots Fired 557 | . 154 26 . . 329 2 . 21 . 5 20 Gun 491 | . 154 18 . . 317 2 . . . . . Cannon . | . . . . . . . . . . . . Launcher 66 | . . 8 . . 12 . . 21 . 5 20 Special . | . . . . . . . . . . . . Kinetic 491 | . 154 18 . . 317 2 . . . . . Thermal . | . . . . . . . . . . . . Explosive 66 | . . 8 . . 12 . . 21 . 5 20 Electromagnetic . | . . . . . . . . . . . . Robot Hit Streak 17 | . 10 10 . . 17 1 . 6 . 3 3 Robot Miss Streak 5 | . 5 1 . . 5 1 . 2 . . 1 Penetration Max . | . . . . . . . . . . . . Secondary Targets 9 | . 5 . . . 4 . . . . . . Max Gunslinging Chain 1 | . 1 . . . 1 . . . . . . Shots Hit Robots 393 | . 100 21 . . 199 8 . 28 9 16 12 Core Hits 261 | . 41 11 . . 119 4 . 38 1 13 34 Critical Kills 6 | . 1 . . . 2 . . 2 1 . . Critical Parts Destroyed 10 | . 1 . . . 1 . . 3 . 5 . Critical Strikes 19 | . 2 . . . 4 . . 5 1 5 2 Destroy 6 | . 2 . . . 4 . . . . . . Smash 11 | . . . . . . . . 5 1 5 . Impale 2 | . . . . . . . . . . . 2 Melee Attacks 130 | . . . . . 1 7 . 32 13 56 21 Impact 110 | . . . . . 1 . . 26 13 56 14 Slashing 13 | . . . . . . 7 . 6 . . . Piercing 7 | . . . . . . . . . . . 7 Sneak Attacks 23 | . . . . . . 6 . 7 2 5 3 Combat Hostiles . | . . . . . . . . . . . . Follow-up Attacks . | . . . . . . . . . . . . Damage Inflicted 15240 | . 1301 456 . . 4416 747 . 3047 623 1762 2888 Guns 4827 | . 1301 152 . . 3356 18 . . . . . Cannons . | . . . . . . . . . . . . Explosions 6755 | . . 304 . . 1060 . . 2161 . 892 2338 Melee 3658 | . . . . . . 729 . 886 623 870 550 Ramming . | . . . . . . . . . . . . Kinetic 4827 | . 1301 152 . . 3356 18 . . . . . Thermal 816 | . . . . . . . . 816 . . . Explosive 5894 | . . 304 . . 1060 . . 1300 . 892 2338 Electromagnetic 45 | . . . . . . . . 45 . . . Impact 2628 | . . . . . . . . 886 623 870 249 Slashing 729 | . . . . . . 729 . . . . . Piercing 301 | . . . . . . . . . . . 301 Highest Corruption 8 | . . . . . 5 . . 1 . 8 8 Average Corruption 5 | . . . . . 4 . . 1 . 7 3 Corruption Purged 9 | . . . . . 6 . . . . 3 . Corruption Blocked . | . . . . . . . . . . . . Effects 78 | . . . . . 48 . . . . 24 6 Message Errors 21 | . . . . . 15 . . . . 5 1 Matter Fused 17 | . . . . . 12 . . . . 3 2 Heat Flow Errors 13 | . . . . . 6 . . . . 5 2 Energy Discharges 8 | . . . . . 3 . . . . 5 . Parts Rejected 1 | . . . . . 1 . . . . . . Parts Fused 1 | . . . . . . . . . . . 1 Data Loss (minor) 6 | . . . . . 3 . . . . 3 . Data Loss (major) 3 | . . . . . 1 . . . . 2 . Misfires 2 | . . . . . 2 . . . . . . Alerts 1 | . . . . . . . . . . 1 . Weapon Failures 5 | . . . . . 5 . . . . . . Overload Shots . | . . . . . . . . . . . . Overflow Damage 1729 | . . 2 . . 10 313 . 502 182 519 201 Projectiles . | . . . . . . . . . . . . Explosions 220 | . . 2 . . 10 . . 43 . 54 111 Melee 1509 | . . . . . . 313 . 459 182 465 90 Knockbacks 12 | . . . . . . . . 5 2 4 1 Impact 12 | . . . . . . . . 5 2 4 1 Kinetic . | . . . . . . . . . . . . Secondary . | . . . . . . . . . . . . Self-Inflicted Damage 469 | . . 166 . . 27 . . 88 . 51 137 Shots 15 | . . 6 . . 1 . . 3 . 2 3 Rammed . | . . . . . . . . . . . . Targets Rammed . | . . . . . . . . . . . . Kicked . | . . . . . . . . . . . . Crushed . | . . . . . . . . . . . . Highest Temperature 433 | . 8 11 . . 433 298 . 20 . 227 234 Average Temperature 73 | . 2 6 . . 70 100 . 8 . 72 112 Received Heat Transfer 1431 | . 255 69 . . 939 . . 132 . 9 27 Effects 4 | . . . . . 2 2 . . . . . Interference 4 | . . . . . 2 2 . . . . . Siege Activations . | . . . . . . . . . . . . Robots Corrupted . | . . . . . . . . . . . . Combat Hostiles . | . . . . . . . . . . . . Parts Fried 19 | . . . . . . . . 9 3 5 2 Impact Corruptions 47 | . . . . . . . . 15 8 20 4 Robots Melted . | . . . . . . . . . . . . Combat Hostiles . | . . . . . . . . . . . . Parts Melted . | . . . . . . . . . . . . Heat Transferred 500 | . . . . . . . . 500 . . . Parts Sabotaged . | . . . . . . . . . . . . Parts Stolen . | . . . . . . . . . . . . Parts Stripped . | . . . . . . . . . . . . Power Chain Reactions . | . . . . . . . . . . . . Alert | -11 -10 -10 -10 -9 -8 -7 -7 -6 -5 -4 -3 ------- Run | Yrd Mat Min Exi Min Mat Fac DSF Fac Fac Fac Res Peak Influence 776 | . 238 204 . 145 776 393 135 516 322 250 465 Initial 331 | . . 60 . . 56 331 135 39 252 157 96 Average 220 | . 140 63 . 10 411 319 101 214 295 162 150 Maximum Alert Level 3 | . 1 1 . . 3 1 . 2 1 1 2 Low Security (%) 58 | 100 87 99 . 100 12 24 100 62 . 68 80 Level 1 24 | . 12 . . . 33 75 . 13 100 31 11 Level 2 14 | . . . . . 43 . . 23 . . 8 Level 3 2 | . . . . . 10 . . . . . . Level 4 . | . . . . . . . . . . . . Level 5 . | . . . . . . . . . . . . High Security . | . . . . . . . . . . . . Max Security . | . . . . . . . . . . . . Squads Dispatched 26 | . 4 . . . 6 1 1 4 2 3 5 Investigation 8 | . 3 . . . 1 . . 1 1 1 1 Extermination 3 | . . . . . . 1 . 1 . 1 . Reinforcement 14 | . 1 . . . 4 . 1 2 1 1 4 Assault 1 | . . . . . 1 . . . . . . Garrison . | . . . . . . . . . . . . Intercept . | . . . . . . . . . . . . Searches Triggered . | . . . . . . . . . . . . Construction Impeded 2 | . . . . . 2 . . . . . . Haulers Reinforced 1 | . . . . . . . . . . . 1 Active Scanning Responses . | . . . . . . . . . . . . Cargo Convoy Interrupts . | . . . . . . . . . . . . Stealth | -11 -10 -10 -10 -9 -8 -7 -7 -6 -5 -4 -3 --------- Run | Yrd Mat Min Exi Min Mat Fac DSF Fac Fac Fac Res Distress Signals 14 | . 1 1 . . 5 . . 3 1 1 2 Communications Jammed . | . . . . . . . . . . . . Distress Signals . | . . . . . . . . . . . . Times Spotted 193 | . 31 9 . 3 63 . 4 29 5 24 25 Peak Tracking Total 11 | . 4 3 . 4 6 1 4 10 3 11 11 Tactical Retreats 21 | . 3 . . 1 3 . . 4 1 6 3 Traps | -11 -10 -10 -10 -9 -8 -7 -7 -6 -5 -4 -3 ------- Run | Yrd Mat Min Exi Min Mat Fac DSF Fac Fac Fac Res Traps Triggered 7 | . 1 . . . 1 . 2 . 1 1 1 Indirectly . | . . . . . . . . . . . . Trap Hack Attempts . | . . . . . . . . . . . . Triggered . | . . . . . . . . . . . . Disarmed . | . . . . . . . . . . . . Reprogrammed 6 | . 6 . . . . . . . . . . Reused 1 | . 1 . . . . . . . . . . Traps Extracted . | . . . . . . . . . . . . Installed . | . . . . . . . . . . . . Triggered 1 | . 1 . . . . . . . . . . Machines | -11 -10 -10 -10 -9 -8 -7 -7 -6 -5 -4 -3 ---------- Run | Yrd Mat Min Exi Min Mat Fac DSF Fac Fac Fac Res Machines Disabled 12 | . . . . . 2 . . 7 . 1 2 Max in Single Turn 4 | . . . . . 1 . . 4 . 1 2 Garrison Access 2 | . . . . . 1 . . . . 1 . Machines Repaired . | . . . . . . . . . . . . Machines Dismantled . | . . . . . . . . . . . . Machines Sabotaged . | . . . . . . . . . . . . Overloaded Fab Kills . | . . . . . . . . . . . . Hacking | -11 -10 -10 -10 -9 -8 -7 -7 -6 -5 -4 -3 --------- Run | Yrd Mat Min Exi Min Mat Fac DSF Fac Fac Fac Res Machines Accessed 45 | . 5 . . . 6 5 . 9 7 8 5 Terminals 28 | . 4 . . . 5 4 . 4 5 4 2 Fabricators . | . . . . . . . . . . . . Repair Stations 5 | . 1 . . . . . . 2 1 . 1 Recycling Units 6 | . . . . . 1 . . 2 1 1 1 Scanalyzers 4 | . . . . . . 1 . 1 . 1 1 Garrison Access 2 | . . . . . . . . . . 2 . Total Hacks 149 | . 9 . . . 20 32 . 28 16 18 26 Successful 79 | . 5 . . . 8 24 . 19 4 7 12 Failed 70 | . 4 . . . 12 8 . 9 12 11 14 Catastrophic 16 | . 3 . . . 2 2 . 1 . 6 2 Database Lockouts . | . . . . . . . . . . . . Manual 7 | . . . 1 . . . . . . 3 3 Terminals 79 | . 7 . . . 15 12 . 9 12 9 15 Fabricators . | . . . . . . . . . . . . Repair Stations 19 | . 2 . . . . . . 11 2 . 4 Recycling Units 18 | . . . . . 5 . . 5 2 2 4 Scanalyzers 29 | . . . . . . 20 . 3 . 3 3 Garrison Access 4 | . . . . . . . . . . 4 . Terminal Hacks 33 | . 3 . . . 7 6 . 4 3 2 8 Record 2 | . . . . . . 2 . . . . . Part Schematic 2 | . . . . . . . . . . 1 1 Prototype ID Bank 2 | . . . . . 1 . . . . . 1 Open DSF 1 | . . . . . . 1 . . . . . Level Access Points 3 | . . . . . 1 . . 1 . . 1 Branch Access Points 2 | . . . . . . 1 . 1 . . . Emergency Access Points 2 | . . . . . 1 . . . . . 1 Fabricator Index 1 | . . . . . . . . 1 . . . Repair Station Index 1 | . 1 . . . . . . . . . . Recycling Unit Index 1 | . . . . . 1 . . . . . . Scanalyzer Index 1 | . . . . . . 1 . . . . . Alert Level 1 | . . . . . . 1 . . . . . Unreport Threat 1 | . . . . . . . . . . . 1 Reprogram Traps 1 | . 1 . . . . . . . . . . Transport Status 1 | . . . . . . . . 1 . . . Investigation Status 1 | . . . . . . . . . . . 1 Hauler Manifests 4 | . 1 . . . 2 . . . 1 . . Registered Components 3 | . . . . . 1 . . . 1 1 . Zone Layout 3 | . . . . . . . . . 1 . 2 Fabricator Hacks . | . . . . . . . . . . . . Repair Station Hacks 13 | . 2 . . . . . . 9 1 . 1 Scan Component 8 | . 1 . . . . . . 5 1 . 1 Repair 5 | . 1 . . . . . . 4 . . . Recycling Unit Hacks 8 | . . . . . 1 . . 4 . 2 1 Report Inventory 5 | . . . . . 1 . . 2 . 1 1 Retrieve Components 3 | . . . . . . . . 2 . 1 . Scanalyzer 24 | . . . . . . 18 . 2 . 2 2 Insert Component 12 | . . . . . . 9 . 1 . 1 1 Analyze 12 | . . . . . . 9 . 1 . 1 1 Garrison Access Hacks 1 | . . . . . . . . . . 1 . Seal Access 1 | . . . . . . . . . . 1 . Unauthorized Hacks . | . . . . . . . . . . . . Terminals . | . . . . . . . . . . . . Fabricators . | . . . . . . . . . . . . Repair Stations . | . . . . . . . . . . . . Recycling Units . | . . . . . . . . . . . . Scanalyzers . | . . . . . . . . . . . . Garrison Access . | . . . . . . . . . . . . Data Cores Recovered 4 | . 1 . . . . 1 . 1 . 1 . Used 1 | . . . . . . 1 . . . . . Hacking Detections 37 | . 4 . . . 4 3 . 8 6 7 5 Full Trace Events 6 | . 1 . . . 1 . . 1 1 1 1 Feedback Events . | . . . . . . . . . . . . Feedback Blocked . | . . . . . . . . . . . . Robot Schematics Acquired . | . . . . . . . . . . . . Robots Built . | . . . . . . . . . . . . Authchips . | . . . . . . . . . . . . Time . | . . . . . . . . . . . . Total Robot Build Rating . | . . . . . . . . . . . . Part Schematics Acquired 14 | . . . . . . 9 . 1 . 2 2 Parts Built . | . . . . . . . . . . . . Authchips . | . . . . . . . . . . . . Time . | . . . . . . . . . . . . Total Part Build Rating . | . . . . . . . . . . . . Parts Repaired 5 | . 1 . . . . . . 4 . . . Time 183 | . 26 . . . . . . 157 . . . Parts Recycled . | . . . . . . . . . . . . Recycled Matter . | . . . . . . . . . . . . Retrieved Matter . | . . . . . . . . . . . . Retrieved Components 5 | . . . . . . . . 3 . 2 . Parts Scanalyzed 12 | . . . . . . 9 . 1 . 1 1 Part Schematics Acquired 12 | . . . . . . 9 . 1 . 1 1 Parts Damaged 1 | . . . . . . 1 . . . . . Bothacking | -11 -10 -10 -10 -9 -8 -7 -7 -6 -5 -4 -3 ------------ Run | Yrd Mat Min Exi Min Mat Fac DSF Fac Fac Fac Res Used RIF Installer . | . . . . . . . . . . . . Robots Hacked . | . . . . . . . . . . . . Non-combat . | . . . . . . . . . . . . Combat . | . . . . . . . . . . . . Robot Hacks Applied . | . . . . . . . . . . . . Relay Couplers Released 2 | . . . . . 2 . . . . . . Machine Destruction 2 | . . . . . 2 . . . . . . Fabnet Peak Effective % . | . . . . . . . . . . . . Robots Rewired . | . . . . . . . . . . . . Allies Hacked . | . . . . . . . . . . . . Hacks Repelled . | . . . . . . . . . . . . Allies | -11 -10 -10 -10 -9 -8 -7 -7 -6 -5 -4 -3 -------- Run | Yrd Mat Min Exi Min Mat Fac DSF Fac Fac Fac Res Total Allies 3 | . . 3 . . . . . . . . . Largest Group 3 | . . 3 2 2 2 . . . . . . Highest-Rated Group 40 | . . 40 32 32 32 . . . . . . Highest-Rated Ally 16 | . . 16 16 16 16 . . . . . . Total Orders . | . . . . . . . . . . . . Ally Attacks 31 | . . 11 . 12 8 . . . . . . Total Damage 344 | . . 135 . 123 86 . . . . . . Kills 8 | . . 3 . 4 1 . . . . . . Allies Corrupted . | . . . . . . . . . . . . Allies Melted . | . . . . . . . . . . . . Intel | -11 -10 -10 -10 -9 -8 -7 -7 -6 -5 -4 -3 ------- Run | Yrd Mat Min Exi Min Mat Fac DSF Fac Fac Fac Res Robot Analysis Total . | . . . . . . . . . . . . Derelict Logs Recovered 1 | . . 1 . . . . . . . . . Drone Launches . | . . . . . . . . . . . . Drone Recoveries . | . . . . . . . . . . . . Exploration | -11 -10 -10 -10 -9 -8 -7 -7 -6 -5 -4 -3 ------------- Run | Yrd Mat Min Exi Min Mat Fac DSF Fac Fac Fac Res Turns Passed 9646 | 61 1698 892 507 685 2456 529 63 967 267 1078 443 Spaces Moved 8549 | 40 637 337 211 282 1085 882 103 1469 641 2171 691 Core 177 | 15 . . . . 1 . 38 97 . . 26 Treads 2581 | 25 637 337 211 282 1073 16 . . . . . Legs . | . . . . . . . . . . . . Wheels 11 | . . . . . 11 . . . . . . Hover . | . . . . . . . . . . . . Flight 5780 | . . . . . . 866 65 1372 641 2171 665 Fastest Speed 23 | 50 160 240 240 240 155 23 23 37 29 29 32 Average Speed 84 | 118 217 240 240 240 167 26 45 39 31 30 34 Slowest Speed 900 | 160 240 240 240 240 900 175 245 50 37 108 100 Overloaded Moves . | . . . . . . . . . . . . Propulsion Burnouts . | . . . . . . . . . . . . Robots Hopped 7 | . . . . . . . . 2 . . 5 Cave-ins Triggered 1 | . . . . . . . . . . 1 . Exploration Rate (%) 47 | 5 87 68 60 67 79 12 72 31 16 51 21 Regions Visited 11 Branch Regions 3 Pre-discovered Areas 1 | . . . . 1 . . . . . . . Known Exits Taken 5 | . . . . . 1 1 . 1 1 1 . Unknown Exits Taken 5 | 1 1 1 1 1 . . . . . . . Scrap Searched 6 | . . 3 . 3 . . . . . . . Spaces Dug 77 | . . . . . 1 . . 13 1 51 11 Terrain Destroyed 547 | . . 75 . . 62 . . 96 1 61 252 Melee 64 | . . . . . 1 . . 13 1 38 11 Projectile . | . . . . . . . . . . . . AOE 483 | . . 75 . . 61 . . 83 . 23 241 Terrain Rammed . | . . . . . . . . . . . . Walls Destroyed . | . . . . . . . . . . . . Machines Disabled . | . . . . . . . . . . . . Actions | -11 -10 -10 -10 -9 -8 -7 -7 -6 -5 -4 -3 --------- Run | Yrd Mat Min Exi Min Mat Fac DSF Fac Fac Fac Res Total 10348 | 53 801 395 214 291 1516 1175 120 1781 679 2484 839 Wait 851 | . 47 36 . 10 131 208 1 186 . 158 74 Move 8524 | 39 636 336 210 281 1084 881 102 1464 639 2170 682 Hop 6 | . . . . . . . . 2 . . 4 Pick Up 179 | 7 22 4 1 . 50 22 . 27 8 27 11 Fast Attach . | . . . . . . . . . . . . Attach 153 | 6 9 1 1 . 34 19 2 26 5 34 16 Detach 40 | . . . 1 . 3 4 2 9 . 15 6 Swap 15 | 1 3 4 . . 3 2 . 1 . 1 . Drop 103 | . 7 1 1 . 23 31 2 13 2 18 5 Fire 324 | . 77 13 . . 187 1 . 21 . 5 20 Melee 130 | . . . . . 1 7 . 32 13 56 21 Ram . | . . . . . . . . . . . . Kick . | . . . . . . . . . . . . Crush . | . . . . . . . . . . . . Escape Stasis 23 | . . . . . . . 11 . 12 . . Rewire . | . . . . . . . . . . . . Trap . | . . . . . . . . . . . . Miscellaneous . | . . . . . . . . . . . . Route ------- -11/Scrapyard -10/Materials (discovered 4 exits: [*Mat x3] / [*Min]) -10/Mines (discovered 3 exits: [*Mat x2] / *Exi) -10/Exiles -9/Mines -8/Materials (discovered 3 exits: *Fac x3) -7/Factory (discovered 3 exits: Low x2 / DSF) -7/DSF -6/Factory (discovered 6 exits: *Fac x4 / Low x2) -5/Factory -4/Factory (discovered 2 exits: *Res / *Upp) -3/Research (discovered 3 exits: Res x3) History --------- Turn | Location | Event 10 | -11/Scrapyard | Discovered new exit (range 14) 62 | -11/Scrapyard | Entered Materials 243 | -10/Materials | Discovered new exit (range 5) 298 | -10/Materials | Discovered new exit (range 15) 305 | -10/Materials | Build established: Mutant 477 | -10/Materials | Discovered new exit (range 14) 672 | -10/Materials | Discovered new exit (range 11) 1501 | -10/Materials | Repaired Lgt. Treads 1760 | -10/Materials | Entered Mines 1807 | -10/Mines | Assembled infested the area 1991 | -10/Mines | Found a damaged Exp. Sensor Array with a note attached 1996 | -10/Mines | Found Prototype Device 2072 | -10/Mines | Learned 2 Materials zone layouts 2130 | -10/Mines | Discovered new exit (range 6) 2150 | -10/Mines | Core integrity fell below 50% 2228 | -10/Mines | Discovered new exit (range 9) 2362 | -10/Mines | Assisted by bots powering up and referring to "LRC-V3" 2640 | -10/Mines | Deemed a non-threat by the Exiles lab entrance 2642 | -10/Mines | Discovered new exit (range 5) 2652 | -10/Mines | Entered Exiles 2652 | -10/Exiles | Accompanied by 2 allies 2710 | -10/Exiles | Met 8R-AWN 2753 | -10/Exiles | Met EX-HEX 2832 | -10/Exiles | Met EX-BIN 2859 | -10/Exiles | Aligned with FarCom system 2861 | -10/Exiles | Given EX-Vault access code 2916 | -10/Exiles | Opened EX-Vault 2926 | -10/Exiles | Found Prototype Energy Cannon 2928 | -10/Exiles | Identified Gui. Plasma Cannon 2977 | -10/Exiles | Warned to stay clear of 0b10 Research branches 3047 | -10/Exiles | Met EX-DEC 3133 | -10/Exiles | Discovered new exit (range 10) 3159 | -10/Exiles | Left Exiles lab with Gui. Plasma Cannon 3159 | -10/Exiles | Entered Mines 3159 | -9/Mines | Accompanied by 2 allies 3779 | -9/Mines | Learned location of Storage (-9) 3829 | -9/Mines | Discovered new exit (range 7) 3844 | -9/Mines | Entered Materials 3844 | -8/Materials | Accompanied by 2 allies 3844 | -8/Materials | Evolved 4 slots: Propulsion x2, Utility x2 3863 | -8/Materials | Identified exit to Factory 4211 | -8/Materials | Lost 6 parts (1p3n2u) 4551 | -8/Materials | Build established: Scavenger-Mutant 5324 | -8/Materials | Core integrity fell below 50% 6249 | -8/Materials | Build established: Mutant 6300 | -8/Materials | Entered Factory 6300 | -7/Factory | Evolved 2 slots: Propulsion x1, Utility x1 6534 | -7/Factory | Identified exit to Lower Caves 6605 | -7/Factory | Identified exit to DSF 6633 | -7/Factory | Build established: Hacker-Sprinter 6829 | -7/Factory | Entered DSF 6853 | -7/DSF | Additional patrols routed to DSF 6885 | -7/DSF | Discovered new exit (range 16) 6892 | -7/DSF | Entered Factory 6892 | -6/Factory | Evolved 2 slots: Propulsion x1, Utility x1 6899 | -6/Factory | Lost 6 parts (1p4n1u) 7016 | -6/Factory | Repaired Nuclear Pulse Array 7033 | -6/Factory | Noticed a derelict Sapper rigging charges 7101 | -6/Factory | Identified exit to Factory 7101 | -6/Factory | Identified exit to Lower Caves 7105 | -6/Factory | Build established: Mutant 7397 | -6/Factory | Repaired Fission Core 7456 | -6/Factory | Repaired Missile Launcher 7495 | -6/Factory | Repaired Adv. Weight Redist. System? 7859 | -6/Factory | Entered another Factory area 7859 | -5/Factory | Evolved 2 slots: Utility x2 8124 | -5/Factory | Discovered new exit (range 9) 8126 | -5/Factory | Identified exit to Factory 8126 | -5/Factory | Entered another Factory area 8126 | -4/Factory | Evolved 2 slots: Power x1, Utility x1 8329 | -4/Factory | Build established: Infiltrator-Sprinter 8431 | -4/Factory | Crushed by falling debris 8462 | -4/Factory | Lost 3 parts (1n2u) 8607 | -4/Factory | Discovered new exit (range 2) 8607 | -4/Factory | Identified exit to Upper Caves 8718 | -4/Factory | Lost 3 parts (2u1w) 9144 | -4/Factory | Discovered new exit (range 13) 9156 | -4/Factory | Identified exit to Research 9204 | -4/Factory | Entered Research 9204 | -3/Research | Evolved 2 slots: Utility x2 9254 | -3/Research | Identified exit to Research 9289 | -3/Research | Build established: Hacker-Sprinter 9597 | -3/Research | Found Fusion Bomb Launcher 9617 | -3/Research | Core integrity fell below 50% 9639 | -3/Research | Destroyed 7 combat bots 9641 | -3/Research | Core integrity fell below 20% 9647 | -3/Research | Destroyed by H-77 Assassin with Coil Gun Last Messages --------------- 09638_ Slug penetrates R-10 Processor. 09639_ Slug penetrates H-77 Assassin. 09639_ Fusion Bomb Launcher destroyed. 09640_ The unstable cave ceiling collapses. 09640_ Penetrated by Slug. 09640_ Acquired 28 matter. 09641_ R-10 Processor collects Imp. Phase Shifter. 09642_ The unstable cave ceiling collapses. 09644_ Penetrated by Slug. 09645_ R-10 Processor collects Adv. Shield Generator. 09646_ The unstable cave ceiling collapses. 09646_ R-10 Processor collects Com. Wheel. 09647_ The unstable cave ceiling collapses. 09647_ Slug penetrates Particle Synthesizer. 09647_ Penetrated by Slug. 09647_ Slug penetrates Earth. [Achievement: 10k Club] Map ----- +----------------------------------------------------+ | ################# #] T#????????????????????? | | ????? + # ""#????????????????????? | | ????? # # ""#????????????????????? | | ?????? ?# # ""#????????????????????? | | ?????? ??# # #????????????????????? | | ??????? ???# # #????????????????????? | | ???????#####????# ##########??????????????????? | | ???????????T"""## # #??????????????????? | | ?????? + #??????????????????? | | ????? #"""" #??????????????????? | | ?????? #"""" #??????????????????? | | ?????? #"""" #??????#####???????? | | ??????? #"""" #??????# #???????? | | ??????? #"""" / #??????# #???????? | | ??????? # #??????# #???????? | | ????????""" """ # ######## #???????? | | ?????????"" """ #####+# # ## ######### | | ??????????" """ ??## ## | | ??????????" ??""" ??# # # =## | | ???????????? """ ???# # # # ! | | ??????????? ???# # # | | ??????????? #### R | | ?????????? [ % | | ?????????? *% # # ! | | ?????????? !hh # # | | ?????????? @ ## # | | ????????????############ # | | ?????????????????????# # ## | | ????????????????????## h ######### | | ???????????????????## " """ ### ## #??????? | | ??????????????????# R " """ #?####?????????? | | ??????????????????# " """ #??????????????? | | ?????????????????# ! #??????????????? | | ????????????????# ## #??????????????? | | ????????????????##?# " """ #??????????????? | | ?????????????????? " """ #??????????????? | | ?????????????????#### """ """ #??????????????? | | ????????????????????## #??????????????? | | ?????????????????????# #??????????????? | | ?????????????????????##############??????????????? | | ?????????????????????????????????????????????????? | | ?????????????????????????????????????????????????? | | ?????????????????????????????????????????????????? | | ?????????????????????????????????????????????????? | | ?????????????????????????????????????????????????? | | ?????????????????????????????????????????????????? | | ?????????????????????????????????????????????????? | | ?????????????????????????????????????????????????? | | ?????????????????????????????????????????????????? | | ?????????????????????????????????????????????????? | +----------------------------------------------------+ Best States ------------- Heat Dissipation 46 Energy Generation 48 Energy Capacity 700 Matter Stores 300 Matter Capacity 300 Sight Range 16 Terrain Scan Density 10 ECM Strength 1 Cloak Strength 3 Additional Mass Support 9 Armor Coverage 300 Resistance: KI 30 Resistance: EX 50 Utility Shielding 66 Weapon Shielding 33 Evasion (%) 75 Recoil Reduction 4 Offensive Hacking 14 Defensive Hacking 12 Item Schematics ----------------- Lyr. Light Armor Plating | -7/Factory | Scanalyzed Missile Launcher | -7/Factory | Scanalyzed Lgt. Nuclear Core | -7/Factory | Scanalyzed Hcp. Storage Unit | -7/Factory | Scanalyzed Imp. Signal Interpreter | -7/Factory | Scanalyzed Recalibrator | -7/Factory | Scanalyzed Energy Filter | -7/Factory | Scanalyzed Sml. Storage Unit | -7/Factory | Scanalyzed Imp. Utility Shielding | -7/Factory | Scanalyzed Med. Storage Unit | -6/Factory | Scanalyzed Lgt. Particle Reactor | -4/Factory | Hacked Impulse Thruster | -4/Factory | Scanalyzed Lgt. Quantum Reactor | -3/Research | Hacked Adv. Hacking Suite | -3/Research | Scanalyzed Robot Schematics ------------------ None Fabricated ------------ Nothing Alien Tech Used ----------------- None Achievements -------------- 10k Club Deadly Force Dodgeball, But With Guns Challenges ------------ None Game ------ Seed FocalPotentialCarapace Manual? 0 Play Time 02:42:52 Cumulative 17.7 hours Start 2024.04.01 @ 18:36:15 End 2024.04.01 @ 21:25:43 Sessions 1 Manual Loads 0 Difficulty Rogue Special Mode None Game No. 32 Rogue 32 Adventurer 0 Explorer 0 Win Type - Total 0 Types 0/0/0/0/0/0/0/0/0 Lore% 16 Gallery% 18 Achievement% 18 Wizard Run 0 Options --------- Layout 1 ASCII 0 Keyboard 0 Movement Mouse Keybinds 0 Fullscreen 2 Font 32/Smallcaps Map View 50x40 Zoom Use 0% Tactical HUD 1 Map Filters NONE Filters NONE Steam 1 RUN: eefc4138-da1d-4609-9ce6-215cdf902aeb